bitfinex-derivatives/quotes_ETHF0:USTF0_20251021
["timestamp","ask_amount","ask_price","bid_price","bid_amount"]
[1761056487279,2.3555,3957.4,3956.2,0.74404027]
[1761056487573,2.3555,3957.4,3956.4,0.4548]
[1761056487768,2.3555,3957.4,3956.6,0.45478]
[1761056487965,2.3555,3957.4,3956.9,0.45475]
[1761056488172,2.3555,3957.4,3956.2,2.5211]
[1761056488366,2.3555,3957.4,3956.5,0.45479]
[1761056488675,0.00315506,3957.5,3956.8,0.45476]
[1761056488975,0.00315506,3957.5,3956.4,2.5211]
[1761056489171,0.00315506,3957.5,3953.0,1.74060506]
[1761056489173,0.00315506,3957.5,3956.9,2.5211]
[1761056489376,2.35865506,3957.5,3956.7,2.97587]
[1761056489568,2.35865506,3957.5,3956.1,2.5211]
[1761056489763,2.35865506,3957.5,3956.6,0.45478]
[1761056490071,0.00315506,3957.5,3956.3,2.5211]
[1761056490269,0.00315506,3957.5,3957.3,0.4547]
[1761056490466,0.00315506,3957.5,3957.3,2.9758]
[1761056490670,0.00315506,3957.5,3956.0,1.13713]
[1761056490871,2.35865506,3957.5,3956.1,2.5211]
[1761056491067,2.3555,3957.3,3956.1,2.5211]
[1761056491375,2.3555,3957.3,3956.6,0.45478]
[1761056491578,0.45784506,3957.5,3956.2,0.74404027]
[1761056491579,2.81022,3957.2,3956.2,0.74404027]
[1761056491875,2.81029,3956.6,3955.5,0.00239506]
[1761056492069,2.3555,3956.6,3955.8,0.45487]
[1761056492271,2.3555,3956.6,3956.1,2.97593]
[1761056492576,2.3555,3956.6,3955.8,0.45488]
[1761056492776,2.81029,3956.6,3955.8,0.45487]
[1761056492974,2.3555,3956.2,3955.5,0.00239506]
[1761056493164,0.45483,3956.3,3955.6,0.74404027]
[1761056493369,2.3555,3956.6,3955.6,0.74404027]
[1761056493565,1.13686,3957.1,3955.7,0.74404027]
[1761056493881,2.81039,3955.7,3955.5,0.00239506]
[1761056494080,2.8104,3955.7,3955.5,0.00239506]
[1761056494777,2.3555,3955.1,3954.0,2.5211]
[1761056495073,2.3555,3954.7,3954.1,0.75073986]
[1761056495275,2.3555,3954.7,3952.8,5.2500694]
[1761056495276,2.3555,3954.7,3954.2,0.75073986]
[1761056495477,2.3555,3955.4,3954.6,0.45501]
[1761056495666,2.81242242,3955.4,3954.7,0.75073986]
[1761056495868,2.35748242,3955.4,3955.2,0.45495]
[1761056496182,2.35748242,3955.4,3954.8,1.49478013]
[1761056496183,0.00198242,3955.4,3955.3,0.75497772]
[1761056496372,2.35748242,3955.4,3955.3,0.75497772]
[1761056497082,7.35748242,3955.4,3955.3,0.75497772]
[1761056497380,0.00198242,3955.4,3955.3,1.49901799]
[1761056497574,2.35748242,3955.4,3955.3,1.49901799]
[1761056498080,2.35748242,3955.4,3955.3,0.75497772]
[1761056499374,7.35748242,3955.4,3955.3,0.75497772]
[1761056500083,2.3555,3955.3,3954.6,1.74358278]
[1761056500387,0.00198242,3955.4,3954.7,3.26514027]
[1761056500576,2.3555,3955.3,3955.0,0.45496]
[1761056500771,2.3555,3955.3,3954.8,0.74404027]
[1761056500977,2.3555,3955.3,3954.6,2.48762305]
[1761056501176,2.3555,3955.0,3954.6,1.74358278]
[1761056501376,2.3555,3955.0,3954.7,0.455]
[1761056501574,2.3555,3955.0,3954.8,0.45499]
[1761056501776,2.3555,3955.0,3954.9,1.29649792]
[1761056501978,2.81047,3955.0,3954.9,1.29649792]
[1761056502170,0.9452,3955.0,3954.6,0.00297772]
[1761056502375,2.3555,3954.9,3954.6,1.20202799]
[1761056502571,2.3555,3954.9,3954.6,0.74701799]
[1761056502781,2.3555,3954.9,3954.7,0.455]
[1761056502982,2.3555,3954.9,3954.7,1.19904027]
[1761056503182,2.3555,3954.9,3954.7,0.74404027]
[1761056503379,2.3555,3954.9,3954.7,1.19904027]
[1761056503584,2.3555,3954.9,3954.6,0.00297772]
[1761056503783,2.3555,3955.2,3954.9,0.45497]
[1761056503986,2.3555,3955.2,3954.7,0.74404027]
[1761056504178,2.3555,3955.2,3954.8,0.45499]
[1761056504380,0.00198242,3955.4,3955.3,0.45494]
[1761056504686,0.00198242,3955.4,3955.2,0.45494]
[1761056504981,0.00198242,3955.4,3955.3,3.26514027]
[1761056505181,0.9452,3956.4,3955.3,3.26514027]
[1761056505182,0.9452,3956.4,3956.2,0.45483]
[1761056505391,2.3555,3956.3,3955.7,1.75591631]
[1761056505682,2.3555,3955.9,3955.8,0.74205785]
[1761056505881,2.3555,3955.9,3955.5,1.30103631]
[1761056506184,2.3555,3955.7,3955.5,0.74205785]
[1761056506387,0.00246106,3955.9,3955.7,0.45489]
[1761056506977,2.35796106,3955.9,3955.3,0.45493]
[1761056507179,2.35796106,3955.9,3955.3,1.19698785]
[1761056507180,2.3555,3955.8,3955.3,1.19698785]
[1761056507376,0.45493,3955.4,3955.1,1.30103631]
[1761056507590,2.3555,3955.3,3954.9,2.49807416]
[1761056507780,2.3555,3955.3,3954.9,0.45498]
[1761056508081,0.00246106,3955.9,3955.1,2.5211]
[1761056508284,0.45492,3955.4,3954.9,0.74205785]
[1761056508590,2.3555,3954.7,3954.6,0.00297772]
[1761056508783,10.909,3955.4,3954.6,0.00297772]
[1761056508784,2.3555,3954.9,3954.6,1.20004557]
[1761056508984,2.3555,3954.9,3954.6,0.74503557]
[1761056509183,2.3555,3954.7,3954.6,0.00297772]
[1761056509689,7.3555,3954.7,3954.6,0.00297772]
[1761056509886,2.3555,3954.4,3953.4,1.30103631]
[1761056510093,40.8,3954.9,3953.5,1.19718785]
[1761056510094,2.3555,3954.3,3953.5,1.19718785]
[1761056510404,2.3555,3954.3,3953.5,0.74205785]
[1761056510583,2.3555,3954.3,3953.6,3.28565785]
[1761056510785,40.8,3954.9,3954.1,0.45507]
[1761056510990,2.6154,3955.1,3954.0,1.30103631]
[1761056511289,2.6154,3955.1,3954.6,0.45501]
[1761056511493,2.6154,3955.1,3954.5,0.45502]
[1761056511687,2.6154,3955.1,3954.3,3.28565785]
[1761056511882,11.35635,3961.3,3954.5,2.5436]
[1761056511883,2.6154,3955.8,3954.5,2.5436]
[1761056512087,2.6154,3955.8,3954.7,3.41235149]
[1761056512288,2.6154,3955.8,3954.8,4.03579197]
[1761056512586,2.6154,3955.8,3955.2,0.45493]
[1761056512887,2.6154,3955.8,3955.3,1.07836048]
[1761056513389,2.6154,3955.7,3955.5,0.62344048]
[1761056513688,2.6154,3955.7,3955.6,0.62344048]
[1761056514286,13.5004,3955.7,3955.6,0.62344048]
[1761056514487,2.6154,3955.7,3955.6,0.62344048]
[1761056514887,2.6154,3955.8,3955.6,1.36549833]
[1761056515089,2.6154,3955.8,3955.7,0.62344048]
[1761056515790,0.00246106,3955.9,3955.7,1.82037833]
[1761056515991,2.61786106,3955.9,3955.8,1.36549833]
[1761056516189,2.61786106,3955.9,3955.8,2.23500984]
[1761056516390,0.00246106,3955.9,3955.8,4.77860984]
[1761056516592,0.00246106,3955.9,3955.8,3.90909833]
[1761056517094,2.61786106,3955.9,3955.8,1.36549833]
[1761056517491,0.00246106,3955.9,3955.8,4.77900809]
[1761056518000,2.61786106,3955.9,3955.8,1.49335024]
[1761056518292,2.61786106,3955.9,3955.8,0.62344048]
[1761056518684,0.00246106,3955.9,3955.8,2.23540809]
[1761056519082,0.00246106,3955.9,3955.8,1.49335024]
[1761056519396,2.61786106,3955.9,3955.8,1.36549833]
[1761056519891,13.57186106,3955.9,3955.8,0.62344048]
[1761056520085,2.61786106,3955.9,3955.8,0.62344048]
[1761056520781,2.61786106,3955.9,3955.8,3.90909833]
[1761056520782,0.00246106,3955.9,3955.8,3.90909833]
[1761056520982,0.00246106,3955.9,3955.8,2.66653464]
[1761056521193,2.61786106,3955.9,3955.8,2.66653464]
[1761056521487,2.61786106,3955.9,3955.8,5.21013464]
[1761056521488,0.00246106,3955.9,3955.8,5.21013464]
[1761056521697,0.00246106,3955.9,3955.8,2.66653464]
[1761056522093,1.87580321,3956.9,3955.9,2.5436]
[1761056522283,1.87580321,3956.9,3955.8,5.62344048]
[1761056522284,1.13642,3958.5,3956.7,2.5436]
[1761056522485,5.154,3957.7,3956.9,0.870788]
[1761056522687,10.928,3957.6,3957.2,0.4547]
[1761056522888,10.928,3957.6,3957.3,0.52403765]
[1761056523087,0.00243688,3957.6,3957.5,0.45467]
[1761056523285,0.00243688,3957.6,3957.5,2.5436]
[1761056523693,0.00243688,3957.6,3957.3,0.87369651]
[1761056523894,0.45469,3957.4,3957.3,0.00290851]
[1761056524094,0.45478,3956.6,3956.5,0.870788]
[1761056524300,3.07026,3955.9,3955.8,0.870788]
[1761056524491,2.6154,3956.6,3955.6,3.414388]
[1761056524684,1.13682,3957.1,3954.2,2.18786201]
[1761056524685,3.07029,3955.7,3955.1,0.870788]
[1761056524888,3.07029,3955.7,3954.9,2.5436]
[1761056524889,2.6154,3955.7,3954.9,2.5436]
[1761056525090,2.6154,3955.7,3955.1,0.45494]
[1761056525285,0.45492,3955.4,3954.9,2.54685382]
[1761056525492,2.6154,3955.3,3954.9,0.00325382]
[1761056525700,0.45496,3955.1,3954.9,0.00325382]
[1761056525998,2.6154,3955.0,3954.9,0.00325382]
[1761056526295,2.6154,3955.7,3955.0,0.45496]
[1761056526503,2.6154,3955.7,3955.0,2.99856]
[1761056526993,2.6154,3956.4,3955.1,1.13738]
[1761056527193,2.6154,3956.4,3955.3,2.5436]
[1761056527394,0.45477,3956.7,3955.5,3.529]
[1761056527594,0.45478,3956.6,3956.0,2.5436]
[1761056527789,2.6154,3956.9,3956.0,2.5436]
[1761056528005,2.6154,3956.9,3955.8,2.5436]
[1761056528394,0.45485,3956.0,3955.3,0.870788]
[1761056528597,3.07026,3955.9,3955.2,2.5436]
[1761056528895,3.07027,3955.9,3955.1,0.45495]
[1761056529095,3.07027,3955.9,3954.9,0.00325382]
[1761056529096,2.6154,3955.0,3954.9,0.00325382]
[1761056529291,2.6154,3955.7,3954.9,0.00325382]
[1761056529494,2.6154,3956.3,3955.2,2.5436]
[1761056529692,13.5194,3957.2,3955.8,2.5436]
[1761056529895,0.45481,3956.4,3955.8,2.5436]
[1761056530299,2.6154,3956.6,3955.9,0.45486]
[1761056530498,2.6154,3956.6,3955.8,2.5436]
[1761056530499,2.6154,3956.6,3955.8,2.99846]
[1761056530706,2.6154,3956.6,3955.8,2.5436]
[1761056531403,0.45481,3956.3,3955.8,2.5436]
[1761056531602,0.4548,3956.5,3955.8,2.5436]
[1761056531803,0.4548,3956.5,3955.8,2.99847]
[1761056532004,2.6154,3956.6,3955.8,2.5436]
[1761056532809,3.07021,3956.3,3955.8,2.5436]
[1761056533006,2.6154,3956.3,3955.8,2.99846]
[1761056533206,3.07022,3956.3,3955.8,2.99846]
[1761056533409,3.07022,3956.3,3955.8,2.5436]
[1761056533600,0.45484,3956.1,3955.1,2.5436]
[1761056533901,0.45488,3955.7,3955.1,2.5436]
[1761056534103,3.0703,3955.6,3955.1,0.45495]
[1761056534296,3.0703,3955.6,3954.9,0.00325382]
[1761056534297,2.6154,3955.6,3954.9,0.45822382]
[1761056534602,0.45492,3955.4,3954.9,2.54685382]
[1761056534908,2.6154,3955.3,3954.9,2.54685382]
[1761056535210,3.07035,3955.1,3954.9,0.00325382]
[1761056535506,3.07035,3955.1,3954.9,3.82e-06]
[1761056535702,2.8693,3955.0,3954.9,3.82e-06]
[1761056535897,48.6693,3955.0,3954.9,3.82e-06]
[1761056536098,49.57437161,3955.0,3954.9,3.82e-06]
[1761056536299,0.2539,3954.4,3952.4,2.5436]
[1761056536501,1.13792,3953.3,3951.7,3.414388]
[1761056536707,2.6154,3952.8,3951.8,2.5436]
[1761056536906,2.6154,3952.2,3951.8,2.5436]
[1761056537202,3.07069,3952.2,3951.3,0.45539]
[1761056537411,3.0707,3952.1,3951.8,0.00230753]
[1761056537705,0.00192842,3952.2,3951.8,2.54590753]
[1761056538007,0.00192842,3952.2,3952.1,2.5436]
[1761056538204,0.00192842,3952.2,3951.8,0.00230753]
[1761056538406,0.00192842,3952.2,3951.9,2.82891]
[1761056538598,0.00192842,3952.2,3951.9,2.3736]
[1761056538799,0.00192842,3952.2,3952.1,2.3736]
[1761056539506,0.00192842,3952.2,3952.1,7.82889]
[1761056539803,0.00192842,3952.2,3952.1,2.3736]
[1761056540209,0.00192842,3952.2,3951.8,2.83122753]
[1761056540510,0.00192842,3952.2,3952.1,2.3865]
[1761056541007,0.00192842,3952.2,3952.0,2.8418]
[1761056541511,0.00192842,3952.2,3952.0,2.3865]
[1761056541805,2.64181842,3952.2,3951.8,0.00230753]
[1761056542013,2.18652842,3952.2,3951.8,0.00230753]
[1761056542206,0.45531,3952.0,3951.8,0.00230753]
[1761056542405,2.1846,3951.9,3951.8,0.00230753]
[1761056543510,0.4553,3952.1,3951.8,0.00230753]
[1761056543709,2.63991,3952.0,3951.8,0.00230753]
[1761056544217,3.51581,3952.0,3951.8,0.00230753]
[1761056544523,2.1846,3951.9,3951.8,0.00230753]
[1761056545316,0.00192842,3952.2,3952.1,2.3865]
[1761056545617,0.00192842,3952.2,3951.8,0.00230753]
[1761056545618,2.1846,3951.9,3951.8,0.00230753]
[1761056547119,0.00192842,3952.2,3952.0,0.4553]
[1761056547318,2.18652842,3952.2,3951.9,0.45531]
[1761056547518,0.00192842,3952.2,3952.1,2.84179]
[1761056547715,2.18652842,3952.2,3951.8,0.00230753]
[1761056547916,2.18652842,3952.2,3951.9,0.45531]
[1761056548220,2.18652842,3952.2,3951.8,0.00230753]
[1761056548426,2.1846,3951.9,3951.8,0.00230753]
[1761056548921,2.64009,3950.4,3949.8,0.65280066]
[1761056549112,2.1846,3950.9,3949.8,2.60866798]
[1761056549314,0.4554,3951.2,3950.4,2.84198]
[1761056549525,2.1846,3951.4,3950.1,1.13879]
[1761056549713,2.1846,3951.4,3950.9,0.45542]
[1761056550018,2.63999,3951.3,3950.9,0.00265255]
[1761056550224,2.1846,3951.3,3951.0,0.45541]
[1761056550518,0.45537,3951.5,3951.0,0.45541]
[1761056550718,0.8759,3951.9,3951.0,0.45541]
[1761056551021,0.45535,3951.6,3951.1,0.4554]
[1761056551323,2.63997,3951.5,3950.9,0.45808255]
[1761056551522,2.63997,3951.5,3951.0,0.45541]
[1761056551815,2.63997,3951.5,3950.9,0.00265255]
[1761056551816,2.63999,3951.3,3950.9,0.00265255]
[1761056552017,2.1846,3951.0,3950.9,0.00265255]
[1761056552214,2.1846,3951.8,3950.9,0.00265255]
[1761056552412,2.63997,3951.5,3951.1,0.4554]
[1761056552615,0.00192842,3952.2,3951.3,0.45537]
[1761056552815,0.00192842,3952.2,3950.9,2.38915255]
[1761056552816,2.18652842,3952.2,3951.1,2.3865]
[1761056553119,2.1846,3952.0,3951.8,0.45532]
[1761056553625,2.1846,3952.0,3951.6,0.45534]
[1761056553813,2.1846,3952.1,3951.1,2.3865]
[1761056554014,2.1846,3952.1,3951.6,0.45534]
[1761056554219,2.1846,3952.1,3951.3,2.3865]
[1761056554220,2.1846,3952.1,3951.7,0.45533]
[1761056554416,2.1846,3952.1,3951.3,2.3865]
[1761056554417,2.6399,3952.1,3951.5,0.45535]
[1761056554619,2.1846,3951.9,3951.5,0.45535]
[1761056554815,0.45531,3952.0,3950.9,0.00265255]
[1761056554816,2.1846,3951.8,3950.9,0.00265255]
[1761056555129,2.1846,3952.1,3950.9,0.00265255]
[1761056555323,2.1846,3952.0,3951.0,2.3865]
[1761056555523,0.45533,3951.8,3951.3,0.45538]
[1761056555729,2.1846,3951.7,3951.4,0.45537]
[1761056555923,2.1846,3951.7,3951.1,2.3865]
[1761056555924,2.1846,3951.7,3951.5,0.45535]
[1761056556121,2.1846,3951.7,3951.1,2.3865]
[1761056556320,0.45720842,3952.2,3951.2,1.1385]
[1761056556534,2.6399,3952.1,3951.7,0.45533]
[1761056557027,2.6399,3952.1,3951.8,0.45533]
[1761056557223,2.1846,3952.1,3951.9,0.45531]
[1761056557417,2.6399,3952.1,3951.7,0.45533]
[1761056557626,2.6399,3952.1,3951.8,0.45532]
[1761056557830,2.1846,3951.9,3951.7,0.45534]
[1761056559032,2.1846,3951.7,3950.9,0.00265255]
[1761056559231,2.1846,3951.5,3951.4,0.45537]
[1761056559527,2.1846,3951.5,3951.3,0.45538]
[1761056560133,2.63993,3951.8,3951.1,2.3865]
[1761056560326,2.63993,3951.8,3951.6,0.45535]
[1761056560518,2.64181842,3952.2,3952.0,0.4553]
[1761056560722,2.64181842,3952.2,3951.2,3.35960859]
[1761056560723,0.45531,3952.0,3951.3,1.13845]
[1761056560923,2.1846,3952.1,3950.9,1.14124255]
[1761056561229,0.45538,3951.4,3950.9,0.00265255]
[1761056561430,2.1846,3951.3,3951.2,0.4554]
[1761056561834,2.18652842,3952.2,3952.1,0.45529]
[1761056562732,2.18652842,3952.2,3951.5,2.3865]
[1761056563033,2.18652842,3952.2,3952.0,0.4553]
[1761056563236,2.1846,3951.9,3951.3,0.65280066]
[1761056563529,2.1846,3951.9,3951.8,0.45532]
[1761056564630,0.00192842,3952.2,3952.1,0.45529]
[1761056564631,2.18652842,3952.2,3952.1,0.45529]
[1761056566329,2.64180842,3952.2,3952.0,1.10810066]
[1761056566639,2.18652842,3952.2,3952.0,0.65280066]
[1761056566828,2.18652842,3952.2,3952.0,3.49460066]
[1761056566829,0.00192842,3952.2,3952.0,3.49460066]
[1761056567029,0.00192842,3952.2,3952.0,2.8418]
[1761056567336,0.00192842,3952.2,3951.9,0.870788]
[1761056567337,2.1846,3952.1,3951.9,1.326098]
[1761056567538,2.1846,3952.1,3951.9,0.45531]
[1761056567934,2.1846,3952.1,3952.0,0.4553]
[1761056568135,0.00192842,3952.2,3951.9,1.11630775]
[1761056568136,3.0605,3952.0,3951.9,1.11630775]
[1761056568445,3.5158,3952.0,3951.9,0.66099775]
[1761056568735,0.00192842,3952.2,3952.1,2.84179]
[1761056568928,2.18652842,3952.2,3951.9,1.326088]
[1761056569130,2.1846,3951.9,3951.8,0.870788]
[1761056569334,2.63992,3951.9,3951.7,0.870788]
[1761056569636,2.63992,3951.9,3951.6,0.870788]
[1761056569831,0.00192842,3952.2,3951.6,0.870788]
[1761056570046,2.18652842,3952.2,3952.1,0.45529]
[1761056570540,2.64180842,3952.2,3952.0,0.66121347]
[1761056571538,1.9772,3952.1,3952.0,0.66121347]
[1761056571831,1.3046,3952.0,3951.8,0.66121347]
[1761056572032,1.9772,3951.9,3951.8,0.66121347]
[1761056572630,1.9772,3952.1,3951.8,0.66121347]
[1761056572832,1.97912842,3952.2,3952.0,0.4553]
[1761056573035,2.43440842,3952.2,3952.1,0.66078052]
[1761056573242,1.97912842,3952.2,3952.0,0.66078052]
[1761056573541,2.43440842,3952.2,3952.0,0.66078052]
[1761056573943,1.9772,3952.1,3952.0,0.66078052]
[1761056574542,3.2818,3952.0,3951.9,0.66078052]
[1761056574938,1.3046,3952.0,3951.8,0.66078052]
[1761056575144,1.9772,3951.9,3951.8,0.66078052]
[1761056575939,1.97912842,3952.2,3951.6,0.870788]
[1761056576246,1.9772,3952.1,3951.9,0.45531]
[1761056576641,0.00192842,3952.2,3951.7,0.870788]
[1761056576642,1.9772,3951.9,3951.7,0.870788]
[1761056576847,2.43251,3951.9,3951.6,0.870788]
[1761056577044,1.9772,3951.9,3951.7,1.326118]
[1761056577352,1.9772,3951.9,3951.8,0.870788]
[1761056577551,0.00192842,3952.2,3951.8,0.870788]
[1761056577748,1.35389274,3953.9,3951.8,0.870788]
[1761056577749,0.70381182,3954.4,3954.2,0.45504]
[1761056577956,1.30414,3956.0,3954.6,0.45499]
[1761056578252,0.8493,3956.0,3954.7,2.1853]
[1761056578550,0.45491,3955.4,3955.0,2.1853]
[1761056578744,0.45492,3955.3,3955.0,1.11429212]
[1761056578949,0.45494,3955.2,3954.9,0.65934212]
[1761056579151,0.45494,3955.2,3954.9,0.21814779]
[1761056579450,0.45498,3954.8,3954.7,0.00315391]
[1761056579646,0.85200843,3956.0,3954.8,2.1853]
[1761056579852,1.9772,3955.9,3954.8,2.1853]
[1761056580348,1.9772,3954.8,3954.7,0.00315391]
[1761056582653,6.9772,3954.8,3954.7,0.00315391]
[1761056583153,1.9772,3954.8,3954.7,0.00315391]
[1761056583560,1.9772,3954.8,3953.7,0.65934212]
[1761056583561,1.9772,3954.3,3953.7,0.65544163]
[1761056583855,1.9772,3954.3,3952.7,0.22487118]
[1761056583856,1.9772,3953.3,3952.7,0.22487118]
[1761056584052,10.95417,3953.2,3952.8,2.1853]
[1761056584359,1.13771,3953.9,3952.0,0.8428]
[1761056584360,0.45514,3953.4,3953.0,2.64048]
[1761056584655,2.43237,3953.2,3953.0,0.00297851]
[1761056586255,1.9772,3953.3,3953.0,0.00297851]
[1761056586463,0.45517,3953.2,3953.0,0.00297851]
[1761056586762,1.9772,3953.1,3953.0,0.00297851]
[1761056587958,1.9772,3952.7,3951.5,0.2194964]
[1761056588163,10.498,3952.6,3951.8,2.1853]
[1761056588462,12.4752,3952.6,3951.1,3.24723554]
[1761056588662,1.9772,3953.2,3952.1,2.1853]
[1761056588961,1.97980711,3953.4,3952.7,2.1853]
[1761056589164,0.00260711,3953.4,3953.3,2.64045]
[1761056589355,1.9772,3954.4,3953.7,2.1853]
[1761056589556,1.9772,3954.4,3953.7,2.6404]
[1761056589557,0.45504,3954.3,3953.7,2.6404]
[1761056589759,0.45505,3954.2,3953.9,2.1853]
[1761056590162,0.45508,3954.0,3953.4,2.1853]
[1761056590365,0.00197794,3954.0,3953.4,2.1853]
[1761056590566,1.9772,3953.9,3952.9,2.1853]
[1761056591065,0.45515,3953.3,3952.9,2.1853]
[1761056591654,1.13774,3953.8,3952.5,0.45523]
[1761056591864,1.13774,3953.8,3952.2,2.1853]
[1761056591865,0.4552,3952.9,3952.2,2.1853]
[1761056592059,0.45524,3952.6,3952.2,2.1853]
[1761056592456,1.9772,3953.0,3952.2,2.1853]
[1761056592656,0.45526,3952.4,3952.2,2.1853]
[1761056593261,0.45528,3952.2,3952.1,0.0026043]
[1761056593960,2.43248,3952.2,3952.1,0.0026043]
[1761056594264,0.45538,3951.3,3951.2,2.1853]
[1761056594467,1.13826,3952.0,3950.6,2.1853]
[1761056594468,1.9772,3951.5,3950.6,2.1853]
[1761056594865,1.9772,3951.5,3950.6,2.64075]
[1761056595069,3.11542,3952.1,3951.0,2.64071]
[1761056595369,3.11542,3952.1,3951.0,2.64275617]
[1761056595370,0.45538,3951.3,3951.0,2.64275617]
[1761056595574,0.45536,3951.5,3951.2,2.1853]
[1761056595870,10.497,3952.3,3951.5,2.64065]
[1761056596071,0.45531,3951.9,3951.7,2.1853]
[1761056596369,0.45533,3951.7,3951.4,2.64066]
[1761056596569,2.43256,3951.5,3951.2,0.45538]
[1761056596778,0.45536,3951.5,3951.2,2.1853]
[1761056597076,0.45536,3951.5,3951.3,2.1853]
[1761056598279,2.53803,3951.7,3951.4,0.45536]
[1761056598477,2.53803,3951.7,3951.0,2.40696409]
[1761056598478,2.0827,3951.7,3951.0,2.28786409]
[1761056598674,61.293,3953.1,3951.0,2.28786409]
[1761056598675,0.3972,3953.7,3951.1,2.0662]
[1761056598889,1.35475888,3954.3,3953.6,0.8431]
[1761056599174,0.45497,3954.9,3954.5,2.0662]
[1761056599377,2.0827,3955.2,3954.5,2.0662]
[1761056599580,1.13717,3955.8,3953.9,2.0662]
[1761056599581,2.0827,3955.4,3953.9,2.0662]
[1761056599790,0.45498,3954.7,3954.1,2.0662]
[1761056599974,0.45776893,3954.7,3954.3,2.0662]
[1761056600174,0.00278893,3954.7,3954.3,2.52122]
[1761056600474,0.45499,3954.6,3954.3,2.0662]
[1761056600678,2.50021,3954.5,3954.1,2.04182291]
[1761056600880,0.00278893,3954.7,3954.5,0.45499]
[1761056601075,0.00278893,3954.7,3954.6,2.0389]
[1761056601475,0.00278893,3954.7,3954.3,2.0389]
[1761056601975,0.00278893,3954.7,3954.2,2.49393]
[1761056602175,2.04798893,3954.7,3954.3,2.0389]
[1761056602476,0.00278893,3954.7,3954.3,2.0389]
[1761056602678,2.04798893,3954.7,3954.3,2.0389]
[1761056602984,2.0452,3954.2,3954.1,0.00292291]
[1761056603282,0.45504,3954.3,3954.1,0.00292291]
[1761056603473,2.50024,3954.3,3954.1,0.00292291]
[1761056603877,12.5392,3954.2,3954.1,0.00292291]
[1761056605181,2.0452,3954.1,3953.5,0.2208909]
[1761056605484,2.50031,3953.6,3953.1,2.49406]
[1761056605780,2.0452,3953.6,3953.2,0.45515]
[1761056605975,2.0452,3953.6,3953.2,2.49405]
[1761056606176,10.493,3953.6,3953.5,2.0389]
[1761056606885,2.0452,3953.9,3953.3,0.45514]
[1761056606886,2.0452,3953.5,3953.3,0.45514]
[1761056607071,12.5382,3953.8,3953.3,2.49404]
[1761056607271,0.45511,3953.6,3953.3,2.0389]
[1761056607472,10.493,3953.8,3953.2,0.00232664]
[1761056607473,0.45514,3953.3,3953.2,0.00232664]
[1761056607672,2.0452,3952.6,3951.2,0.8431]
[1761056607872,2.0452,3952.4,3951.4,2.0389]
[1761056608085,2.0452,3952.2,3951.5,2.65022357]
[1761056608280,2.0452,3952.2,3951.6,0.61132357]
[1761056608478,0.45529,3952.0,3951.8,2.0389]
[1761056608693,0.45529,3952.0,3951.8,2.04174941]
[1761056609085,42.8452,3952.7,3951.8,2.04174941]
[1761056609280,3.39995888,3954.6,3953.3,2.0389]
[1761056609581,2.0452,3954.5,3953.5,2.0389]
[1761056609783,0.45502,3954.4,3953.7,2.49399]
[1761056609986,0.45502,3954.4,3953.9,2.49397]
[1761056610183,0.45502,3954.4,3954.1,2.0389]
[1761056610381,0.45503,3954.3,3954.1,2.0389]
[1761056610775,2.0452,3954.4,3954.0,0.45505]
[1761056610979,2.50024,3954.2,3954.1,0.61063731]
[1761056611181,2.0452,3954.2,3953.3,2.0389]
[1761056611379,0.4551,3953.7,3953.4,2.64966639]
[1761056611582,0.45508,3953.9,3953.6,2.0389]
[1761056611881,0.45508,3953.9,3953.7,0.61076639]
[1761056612187,0.45508,3953.9,3953.5,2.0389]
[1761056612188,0.4551,3953.7,3953.5,2.0389]
[1761056612391,0.4551,3953.7,3953.6,2.64975194]
[1761056612687,0.4551,3953.7,3953.6,0.61085194]
[1761056613081,10.9461,3953.7,3953.6,0.61085194]
[1761056613275,7.5003,3953.7,3953.6,0.61085194]
[1761056613481,7.5003,3953.7,3952.8,0.874]
[1761056613482,0.45517,3953.1,3952.7,2.49411]
[1761056613782,0.45517,3953.1,3952.9,2.0389]
[1761056614584,1.1379,3953.2,3951.9,1.7512468]
[1761056614785,0.45525,3952.4,3951.9,1.3293]
[1761056614975,10.489,3952.3,3952.0,2.0389]
[1761056615380,0.45527,3952.2,3952.0,2.0389]
[1761056615579,0.4553,3951.9,3951.8,0.00284941]
[1761056615785,2.50342974,3951.9,3951.8,0.00284941]
[1761056615986,0.45822974,3951.9,3951.8,0.00284941]
[1761056616488,2.50342974,3951.9,3951.8,0.00284941]
[1761056617482,8.16532974,3951.9,3951.8,0.00284941]
[1761056617691,8.16532974,3951.9,3950.3,0.8772468]
[1761056617692,2.50058,3951.3,3950.3,2.0389]
[1761056617990,12.98957,3951.3,3950.8,2.49432]
[1761056618182,12.98957,3951.3,3950.9,2.49432]
[1761056618383,12.98957,3951.3,3950.9,2.0389]
[1761056618384,0.45539,3951.2,3950.9,2.0389]
[1761056618687,12.98957,3951.3,3950.9,2.49746866]
[1761056619480,10.489,3951.3,3950.9,2.49746866]
[1761056619794,0.00292974,3951.9,3951.4,2.49425]
[1761056619984,0.45822974,3951.9,3951.4,2.49425]
[1761056620285,10.488,3951.8,3951.6,2.49422]
[1761056620486,10.49092974,3951.9,3951.6,2.49422]
[1761056620690,10.94622974,3951.9,3951.6,2.0389]
[1761056620986,10.489,3951.8,3951.3,2.0389]
[1761056621195,0.45533,3951.7,3951.3,2.0389]
[1761056621883,10.94334,3951.6,3951.3,2.0389]
[1761056622290,0.45535,3951.5,3951.3,2.0389]
[1761056622691,10.488,3951.4,3951.3,2.0389]
[1761056622893,10.488,3951.4,3950.9,2.04205866]
[1761056622894,0.45537,3951.3,3950.9,2.04205866]
[1761056623193,0.45539,3951.2,3950.9,2.49746866]
[1761056623584,0.4554,3951.1,3950.9,2.04205866]
[1761056623988,0.4554,3951.1,3950.9,0.00315866]
[1761056624184,2.5006,3951.1,3950.9,0.00315866]
[1761056624994,1.13837,3951.6,3950.9,0.00315866]
[1761056625200,0.45536,3951.4,3951.2,0.45537]
[1761056625384,10.94235,3951.5,3951.3,2.0389]